[Event "SixDays Budapest GM-C 10-2024"]
[Site "Budapest"]
[Date "2024.10.02"]
[Round "5.1"]
[White "Mamatov, Melis"]
[Black "Pap, Gyula"]
[Result "1/2-1/2"]
[ECO "C42"]
[WhiteElo "2362"]
[BlackElo "2476"]
[Annotator "TA"]
[PlyCount "22"]
[EventDate "2024.09.24"]
[EventType "tourn"]
[EventCountry "HUN"]
[SourceTitle "playchess.com"]
[Source "ChessBase"]
[SourceQuality "1"]
[TimeControl "5400+30"]

{[%evp 13,22,22,30,28,34,43,31,0,0,0,19]} 1. e4 {[%emt 0:00:04]} e5 {[%emt 0:01:00]} 2. Nf3 {[%emt 0:00:05]} Nf6 {[%emt 0:00:07]} 3. Nxe5 {[%emt 0:00:05]} d6 {[%emt 0:00:09]} 4. Nf3 {[%emt 0:00:04]} Nxe4 {[%emt 0:00:07]} 5. Nc3 {[%emt 0:00:02]} Nf6 {[%emt 0:01:20]} 6. d4 {[%emt 0:00:07]} Be7 {[%emt 0:00:21]} 7. Bd3 {[%emt 0:00:20]} O-O {[%emt 0:00:27]} 8. O-O {[%emt 0:00:06]} Bg4 {[%emt 0:02:23]} 9. h3 {[%emt 0:09:16]} Bh5 {[%emt 0:00:30]} 10. Ne4 {[%emt 0:00:19]} Nxe4 {[%emt 0:05:11]} 11. Bxe4 {[%emt 0:00:07]} d5 {[%emt 0:00:09] Black took control after the opening.   Weighted Error Value: White=0.10 (very precise) /Black=0.01 (flawless) .  OK:         	White=1     	Black=3} 1/2-1/2

[Event "SixDays Budapest GM-C 10-2024"]
[Site "Budapest"]
[Date "2024.10.02"]
[Round "5.2"]
[White "Susilodinata, Andrean"]
[Black "Chen, Yining"]
[Result "1/2-1/2"]
[ECO "B13"]
[WhiteElo "2393"]
[BlackElo "2252"]
[Annotator "TA"]
[PlyCount "79"]
[EventDate "2024.09.24"]
[EventType "tourn"]
[EventCountry "HUN"]
[SourceTitle "playchess.com"]
[Source "ChessBase"]
[SourceQuality "1"]
[TimeControl "5400+30"]

{[%evp 9,79,7,25,24,20,16,66,60,66,55,59,54,57,56,73,42,52,61,66,54,58,1,2,0,62,77,113,-32,-38,-36,-31,-63,-12,-34,0,0,14,11,23,-14,-11,-9,70,67,65,65,97,0,63,65,57,69,72,90,87,77,92,14,11,0,0,0,0,0,0,0,0,0,0,0,0,0]} 1. e4 {[%emt 0:00:03]} c6 {[%emt 0:01:10]} 2. d4 {[%emt 0:00:06]} d5 {[%emt 0:00:04]} 3. exd5 {[%emt 0:00:04]} cxd5 {[%emt 0:00:04]} 4. Nf3 {[%emt 0:00:04]} Nf6 {[%emt 0:01:11]} 5. Ne5 {[%emt 0:00:04]} a6 {[%emt 0:01:00]} 6. Bd3 {[%emt 0:00:15]} Nc6 {[%emt 0:00:10]} 7. c3 {[%emt 0:00:05]} e6 {[%emt 0:02:58]} (7... Qc7 $11) 8. O-O $14 {[%emt 0:00:11] White is slightly better.} Bd6 {[%emt 0:11:01]} 9. Qe2 {[%emt 0:03:39]} Ne7 {[%emt 0:12:48]} 10. Nd2 {[%emt 0:01:46]} b5 {[%emt 0:03:09]} 11. Ndf3 {[%emt 0:14:01]} h6 {[%emt 0:02:03]} 12. b4 {[%emt 0:02:53]} O-O {[%emt 0:02:52]} 13. a4 {[%emt 0:00:39]} bxa4 {[%emt 0:01:02]} 14. Rxa4 {[%emt 0:00:06]} Bb7 {[%emt 0:00:52]} 15. Nd2 {[%emt 0:24:35]} (15. Bxa6 Ne4 16. Bb2 Qc7 $11) (15. Bb2 $14) 15... Qc7 $11 {[%emt 0:04:56]} 16. Bb2 {[%emt 0:00:40]} Nd7 {[%emt 0:07:31]} (16... a5 $11) 17. f4 $14 {[%emt 0:07:56]} f6 {[%emt 0:14:55] [#]} 18. Ng6 {[%emt 0:10:09] White is much more active.} ({Better is} 18. Nxd7 $1 $16 Qxd7 19. Raa1) 18... Nxg6 $15 {[%emt 0:00:09]} 19. Qxe6+ {[%emt 0:00:16]} Kh8 $1 {[%emt 0:00:04]} (19... Kh7 $6 20. Qf5 Kh8 21. g3 $16 (21. Qxg6 f5 $16)) 20. Bxg6 {[%emt 0:01:10]} Bxf4 {[%emt 0:00:23]} (20... f5 $15 21. Qe3 (21. Bxf5 $2 Bc6 $17) 21... Bc6) 21. Nf3 $11 {[%emt 0:01:27]} Nb6 {[%emt 0:00:54]} 22. Raa1 {[%emt 0:01:19]} Bc8 {[%emt 0:01:08]} 23. Qe2 {[%emt 0:00:42]} Bd7 {[%emt 0:06:02]} 24. Rxa6 {[%emt 0:00:33]} Rxa6 {[%emt 0:01:29]} 25. Qxa6 $40 {[%emt 0:00:03][%mdl 128] White has some attack.} Nc4 {[%emt 0:00:22]} (25... Na4 $11 26. Bc1 Nxc3 27. Bxf4 Qxf4) 26. Bc1 $14 {[%emt 0:00:43]} Bxc1 {[%emt 0:00:32]} (26... Ne3 27. Re1 Qxc3 28. Bd2 Bxh2+ 29. Kh1 $18 (29. Kxh2 Qc7+ 30. Kg1 Nc4 $18)) 27. Rxc1 {[%emt 0:00:02]} Qf4 {[%emt 0:00:11]} 28. Rf1 {[%emt 0:14:04]} (28. Re1 $16) 28... Qg4 {[%emt 0:09:46]} ({Black should try} 28... Qe3+ $11 29. Kh1 Qxc3) 29. Bd3 {[%emt 0:00:32]} Ne3 {[%emt 0:00:34][%csl LRf1,LRg2]} 30. Rf2 {[%emt 0:00:06]} Re8 {[%emt 0:01:41][%cal Oe3g2] [#]} ({Avoid the trap} 30... Nxg2 $2 31. Ne5 Qd1+ 32. Kxg2 $18) 31. Qd6 $1 {[%emt 0:03:50]} Bf5 {[%emt 0:04:16]} 32. h3 {[%emt 0:01:18]} Qh5 {[%emt 0:01:14]} 33. Bxf5 {[%emt 0:02:44]} (33. Bb5 $16 Rc8 34. Re2 Rxc3 35. Qf4 Nxg2 36. Kxg2) 33... Qxf5 $11 {[%emt 0:00:09] The position is equal.} 34. Kh2 {[%emt 0:00:52]} Qd3 {[%emt 0:02:07]} 35. Qc6 {[%emt 0:00:56]} Rb8 {[%emt 0:03:54]} 36. Ra2 {[%emt 0:04:17]} Nf1+ {[%emt 0:02:17]} 37. Kg1 {[%emt 0:00:01][%cal Oc6a6]} Ne3 {[%emt 0:00:16] ...Qb1+ would now be deadly.} 38. Kh2 {[%emt 0:00:28]} Nf1+ {[%emt 0:00:17]} 39. Kg1 {[%emt 0:00:03][%cal Oc6a6]} Ne3 {[%emt 0:00:06] ...Qb1+ is the strong threat.} 40. Kh2 {[%emt 0:01:19] Weighted Error Value: White=0.19 (very precise) /Black=0.16 (very precise) .  Mistake:       	White=4     	Black=5      Inaccurate:     	White=3     	Black=3      OK:         	White=13    	Black=11     Best:        	White=3     	Black=1      Strong:       	White=1     	Black=1} 1/2-1/2

[Event "SixDays Budapest GM-C 10-2024"]
[Site "Budapest"]
[Date "2024.10.02"]
[Round "5.3"]
[White "Laddha, Shubh Jayesh"]
[Black "Kotronias, Vasilios"]
[Result "0-1"]
[ECO "A45"]
[WhiteElo "2308"]
[BlackElo "2458"]
[Annotator "TA"]
[PlyCount "116"]
[EventDate "2024.09.24"]
[EventType "tourn"]
[EventCountry "HUN"]
[SourceTitle "playchess.com"]
[Source "ChessBase"]
[SourceQuality "1"]
[TimeControl "5400+30"]

{[%evp 55,116,-298,-302,-302,-302,-351,-345,-419,-254,-291,0,-341,-344,-341,-312,-348,-348,-358,-332,-376,-365,-362,-329,-341,-321,-397,-359,-485,-456,-442,-460,-414,0,-331,-371,-323,-333,-406,-229,-245,-242,-508,-474,-793,-733,-704,-537,-29981,-4906,-6809,-6511,-29984,-29985,-29985,-29986,-29986,-29987,-29987,-29988,-29989,-29990,-29992,-29993]} 1. d4 {[%emt 0:02:05]} Nf6 {[%emt 0:00:06]} 2. Nc3 {[%emt 0:00:03]} d5 {[%emt 0:00:04]} 3. Bf4 {[%emt 0:00:04]} g6 {[%emt 0:00:03]} 4. e3 {[%emt 0:00:06]} Bg7 {[%emt 0:00:04]} 5. h4 {[%emt 0:00:06]} h5 {[%emt 0:00:04]} 6. Nf3 {[%emt 0:00:59]} O-O {[%emt 0:00:19]} 7. Qd2 {[%emt 0:06:47]} c5 {[%emt 0:07:56]} 8. Ne5 {[%emt 0:01:30]} Nc6 {[%emt 0:12:37]} 9. f3 {[%emt 0:00:34]} Nd7 {[%emt 0:01:00]} 10. Nxd5 {[%emt 0:19:29]} Ndxe5 {[%emt 0:17:08]} 11. dxe5 {[%emt 0:00:14]} Be6 {[%emt 0:00:07]} 12. e4 {[%emt 0:05:54]} Qb8 {[%emt 0:10:37]} 13. O-O-O {[%emt 0:03:01]} Bxe5 {[%emt 0:04:00]} 14. Bg5 {[%emt 0:04:21]} Rd8 {[%emt 0:05:37]} 15. f4 {[%emt 0:06:28]} Bg7 {[%emt 0:07:17]} 16. Bc4 {[%emt 0:27:15]} Kh7 {[%emt 0:01:53]} 17. g4 {[%emt 0:05:45]} Bxg4 {[%emt 0:00:38]} 18. Be2 {[%emt 0:03:42]} Bxe2 {[%emt 0:10:22]} 19. Qxe2 {[%emt 0:00:02]} Nd4 {[%emt 0:00:08]} 20. Rxd4 {[%emt 0:04:43]} cxd4 {[%emt 0:00:06]} 21. f5 {[%emt 0:02:16]} Qe5 {[%emt 0:03:37]} 22. Bf4 {[%emt 0:01:23]} Bh6 {[%emt 0:00:04]} 23. Bxh6 {[%emt 0:00:50]} Kxh6 {[%emt 0:01:48]} 24. Rg1 {[%emt 0:01:32]} Rxd5 {[%emt 0:01:57]} 25. Qd2+ {[%emt 0:00:12]} Kh7 {[%emt 0:00:21]} 26. exd5 {[%emt 0:01:36]} Qxd5 {[%emt 0:00:18]} 27. fxg6+ {[%emt 0:01:15]} fxg6 {[%emt 0:00:02]} 28. Re1 {[%emt 0:00:49]} (28. Qd3 $142 Rg8) 28... e5 $19 {[%emt 0:00:51]} (28... Qxa2 $2 29. Rxe7+ Kg8 30. Qxd4 $18) 29. Qg5 {[%emt 0:00:26]} Re8 $1 {[%emt 0:00:09]} (29... Qxa2 30. Qe7+ Kh6 31. Rxe5 Qa1+ 32. Kd2 $11) 30. Kb1 {[%emt 0:01:15]} Qe6 {[%emt 0:00:21]} 31. a3 {[%emt 0:00:33]} Qg4 {[%emt 0:00:44]} 32. Qf6 {[%emt 0:00:33]} Qe6 $2 {[%emt 0:00:51]} ({Better is} 32... Qf5 $19 33. Qd6 Qe6) 33. Qf2 $2 {[%emt 0:00:22][%mdl 8192]} (33. Qg5 $1 $11 Qe7 34. Qxe7+ Rxe7 35. c3 dxc3 36. bxc3) 33... Kg7 $19 {[%emt 0:00:09]} 34. Qd2 {[%emt 0:00:28]} Qf6 {[%emt 0:01:43]} 35. Re4 {[%emt 0:00:27]} Qf1+ {[%emt 0:00:11]} 36. Ka2 {[%emt 0:00:41]} Qc4+ {[%emt 0:00:33]} 37. b3 {[%emt 0:00:24]} Qd5 {[%emt 0:00:11]} 38. Qe2 {[%emt 0:00:26]} Re6 {[%emt 0:00:13]} 39. Kb2 {[%emt 0:00:31]} b5 {[%emt 0:00:35]} 40. Ka2 {[%emt 0:00:40]} a5 {[%emt 0:00:10]} 41. Kb2 {[%emt 0:00:15]} a4 {[%emt 0:00:29]} 42. b4 {[%emt 0:00:13]} Qc4 {[%emt 0:00:58]} 43. Qd2 {[%emt 0:00:19]} Qd5 {[%emt 0:00:45]} 44. Qe2 {[%emt 0:00:19]} Kf6 {[%emt 0:00:44]} 45. Qg2 {[%emt 0:00:57]} Ke7 {[%emt 0:00:20]} 46. Qg5+ {[%emt 0:00:11]} Kd7 {[%emt 0:00:04]} (46... Kf7 $142 47. Re1 d3) 47. Rf4 $19 {[%emt 0:00:47]} d3 {[%emt 0:01:12]} 48. Rf7+ $2 {[%emt 0:00:56]} (48. Rf8 Kc7 49. Qe3 Qd4+ 50. Qxd4 exd4 51. cxd3) 48... Kc6 $19 {[%emt 0:01:06]} 49. Qd2 {[%emt 0:00:37]} (49. Qe3 $142 Rd6 50. Qa7 Qd4+ 51. Qxd4 Rxd4 52. cxd3 Rxd3 53. Rf6+ Rd6 54. Rf7) 49... Qd4+ {[%emt 0:00:24]} 50. Kb1 {[%emt 0:00:22]} e4 {[%emt 0:00:41]} (50... Qxh4 51. Qxd3 Qd4 52. Qh3 Qd1+ 53. Kb2 Qd4+ 54. Kb1 $11) 51. c3 {[%emt 0:00:37]} Qd5 {[%emt 0:00:40]} (51... e3 $142 52. Qg2+ Qe4 53. Qg5 d2+ (53... Qd5 54. Rc7+ Kxc7 55. Qxd5 $11) 54. Kb2 Qc4 (54... d1=R 55. Qc5#) (54... d1=N+ $2 55. Kc1 $19) (54... Qd5 55. Rc7+ Kxc7 56. Qxd5 $11) 55. Qg2+ Kd6 (55... Qd5 56. Rc7+ Kxc7 57. Qxd5 $11) 56. Qg3+ Re5 (56... Kd5 57. Rd7+ Ke4 58. Qg2+ Ke5 59. Qg5+ Ke4 60. Qg2+ Ke5 61. Qg5+ Ke4 62. Qg2+ $11) 57. Qxg6+ Qe6 58. Rf6 d1=Q (58... d1=N+ $2 59. Kb1 $19) 59. Rxe6+ Rxe6 60. Qg5 Qb3+ 61. Ka1 Qxc3+ (61... Qxa3+ 62. Kb1 Qb3+ 63. Ka1 Qxc3+ 64. Ka2 Qc4+ 65. Kb2 Qxb4+ 66. Ka2 Qc4+ 67. Ka1 a3 68. Qg7 e2 69. Qf8+ Kc7 70. Qg7+ Kb6 71. Qg1+ Ka6 72. Qe1 Qd4+ 73. Qc3 Qxc3+ 74. Kb1 Qb2#) 62. Kb1 Qb3+ (62... Qxa3 63. Qc5+ Kd7 64. Qxb5+ Rc6 65. Qd5+ Rd6 66. Qf5+ Re6 67. Qd5+ Ke7 68. Qg5+ Kf8 69. Qf5+ Kg7 70. Qg5+ Rg6 71. Qe5+ Rf6 72. Qg5+ Kh7 73. Qxh5+ Kg8 74. Qg5+ Kf7 75. Qd5+ Re6 76. Qh5+ Rg6 77. Qf5+ Rf6 78. Qd5+ Kg6 79. Qg5+ Kh7 80. Qh5+ Kg7 81. Qg5+ Kf7 82. Qd5+ $11) 63. Ka1 Qxa3+ 64. Kb1 Qxb4+ 65. Ka2 Qc4+ 66. Kb2 a3+ 67. Kxa3 Qc5+ 68. Kb3 Qxg5 69. hxg5 e2 70. Kc2 e1=Q (70... e1=R 71. g6 R1e2+ 72. Kd1 Rh2 73. g7 Rg6 74. g8=Q Rxg8 75. Ke1 Rg1#) 71. g6 Re3 (71... Rxg6 72. Kd3 Rg3+ 73. Kc2 Qf2+ 74. Kd1 Rg1#) 72. g7 Qf2+ 73. Kd1 Re1#) 52. c4 $19 {[%emt 0:00:29]} Qxc4 {[%emt 0:00:14]} 53. Qf4 {[%emt 0:00:38]} Qb3+ {[%emt 0:00:14]} 54. Ka1 {[%emt 0:00:03]} Qxa3+ {[%emt 0:00:06]} 55. Kb1 {[%emt 0:00:01]} Qxb4+ {[%emt 0:00:16]} 56. Ka1 {[%emt 0:00:08]} Rd6 {[%emt 0:03:26]} 57. Qc1+ {[%emt 0:01:43]} Qc4 {[%emt 0:00:07]} 58. Qd2 {[%emt 0:00:36]} Qxf7 {[%emt 0:00:08]} 0-1

[Event "SixDays Budapest GM-C 10-2024"]
[Site "Budapest"]
[Date "2024.10.02"]
[Round "5.4"]
[White "Srihari L R"]
[Black "Pacher, Milan"]
[Result "1-0"]
[ECO "A06"]
[WhiteElo "2503"]
[BlackElo "2343"]
[Annotator "TA"]
[PlyCount "87"]
[EventDate "2024.09.24"]
[EventType "tourn"]
[EventCountry "HUN"]
[SourceTitle "playchess.com"]
[Source "ChessBase"]
[SourceQuality "1"]
[TimeControl "5400+30"]

{[%evp 9,86,0,39,22,33,43,33,32,35,19,26,33,27,41,67,65,65,57,72,82,75,70,120,109,124,110,114,124,120,0,0,0,27,20,129,77,75,77,167,163,159,139,164,114,120,122,158,164,169,160,166,178,177,152,178,195,305,241,238,245,230,232,2449,2283,29990,29991,29991,29992,29992,29993,29993,29994,29995,29996,29996,29997,29997,29998,29999]} 1. Nf3 {[%emt 0:00:59]} d5 {[%emt 0:02:39]} 2. g3 {[%emt 0:00:16]} g6 {[%emt 0:00:18]} 3. c4 {[%emt 0:01:16]} dxc4 {[%emt 0:00:07]} 4. Na3 {[%emt 0:02:28][%cal Bb1a3,Ba3c4,Bc4e3][%mdl 32]} Bg7 {[%emt 0:00:07]} 5. Nxc4 {[%emt 0:00:35]} b5 {[%emt 0:03:04]} 6. Ne3 {[%emt 0:01:44]} Bb7 {[%emt 0:00:06]} 7. Bg2 {[%emt 0:00:07]} Nd7 {[%emt 0:02:00]} 8. Qb3 {[%emt 0:00:59] White is slightly better.} Rb8 {[%emt 0:01:24]} 9. a4 {[%emt 0:03:07]} (9. Qxb5 $2 Bxf3 10. Qa5 Bxg2 (10... Bxb2 11. Bxb2 Bxg2 12. Qc3 $15) 11. Nxg2 Bxb2 12. Bxb2 Rxb2 $19) 9... bxa4 {[%emt 0:02:12]} 10. Qxa4 {[%emt 0:00:52]} Ngf6 {[%emt 0:00:06]} 11. Ne5 {[%emt 0:03:09][%cal Oe5c6]} (11. Qxa7 Ra8 12. Qxb7 Rxa1 $15) 11... O-O {[%emt 0:10:39]} 12. Nc6 {[%emt 0:01:22] White has more active pieces.} Bxc6 {[%emt 0:03:24]} 13. Qxc6 {[%emt 0:00:58][%cal Oe1g1]} Rb6 {[%emt 0:00:49]} 14. Qc2 {[%emt 0:00:02][%cal Oe1g1]} Qb8 {[%emt 0:01:08]} 15. O-O {[%emt 0:03:09]} e6 {[%emt 0:07:32]} (15... Rb5 $14) 16. Nc4 {[%emt 0:05:43]} Rb5 {[%emt 0:00:58]} 17. d4 {[%emt 0:06:04]} Nd5 {[%emt 0:01:11]} 18. e4 {[%emt 0:01:22]} Nb4 {[%emt 0:00:04]} 19. Qd1 {[%emt 0:01:28]} (19. Qa4 $1 $16) 19... Rd8 $1 $11 {[%emt 0:01:37]} 20. Be3 {[%emt 0:01:36]} c5 {[%emt 0:02:36]} (20... Ne5 $5 21. Nxe5 Bxe5 $11) 21. d5 {[%emt 0:17:40] dxe6 is the strong threat.} Nb6 {[%emt 0:06:13] [#]} (21... Ne5 $11 {keeps the balance.} 22. Qe2 exd5 23. exd5 Nbd3) 22. Bf4 {[%emt 0:01:57]} (22. Qe2 $142 $1 {Strongly threatening Bf4.} Nxc4 (22... exd5 $2 23. Bf4 $18) 23. Qxc4 exd5 24. exd5) 22... e5 $16 {[%emt 0:01:34]} 23. Na3 {[%emt 0:00:54] aiming for Bg5.} Ra5 {[%emt 0:00:52]} (23... exf4 $16 {might work better.} 24. Nxb5 N6xd5 25. exd5 (25. Nxa7 $2 Ne3 $19) 25... Qxb5) 24. Be3 {[%emt 0:02:50]} Bf8 {[%emt 0:05:05]} 25. Qe2 {[%emt 0:02:24]} Qb7 {[%emt 0:03:20]} 26. f4 {[%emt 0:03:57]} ({White should play} 26. Rfc1 $18) 26... exf4 {[%emt 0:06:10]} 27. Bxf4 {[%emt 0:00:51]} (27. gxf4 $6 Qa6 28. Qxa6 Rxa6 $11) 27... c4 {[%emt 0:03:20]} 28. Nxc4 {[%emt 0:05:24]} Nxc4 {[%emt 0:00:09]} 29. Qxc4 {[%emt 0:00:17]} Rxa1 {[%emt 0:01:15]} 30. Rxa1 {[%emt 0:00:02]} Rc8 {[%emt 0:00:05]} 31. Qb3 {[%emt 0:01:39]} Qb6+ {[%emt 0:00:29]} 32. Kh1 {[%emt 0:00:47] Threatens to win with e5.} Qf2 {[%emt 0:01:44]} (32... Rc2 $142 33. Rd1 Qf2) 33. Rf1 {[%emt 0:00:13]} Qe2 {[%emt 0:00:05]} 34. d6 {[%emt 0:04:57][%cal Bd5d6,Bd6d7][%mdl 32]} Nd3 {[%emt 0:05:02][%cal Od3e1] [#]} 35. Be3 $1 $40 {[%emt 0:00:55][%mdl 128] White goes for the king.} Rc4 $2 {[%emt 0:10:12]} (35... Qxe3 $2 36. Qxf7+ (36. Rxf7 $2 Nf2+ 37. Rxf2+ Qxb3 $19) 36... Kh8 37. d7 $18) (35... Ne5 36. d7 (36. Bxa7 Rc2 $15) 36... Rd8) 36. d7 $18 {[%emt 0:02:23]} (36. Qxc4 Nf2+ 37. Bxf2 Qxc4 $14) (36. Bxa7 Bxd6 $14) 36... Be7 {[%emt 0:02:18]} 37. Qb8+ {[%emt 0:03:35] White mates.} (37. Qxc4 Nf2+ 38. Bxf2 Qxc4 $16) 37... Kg7 {[%emt 0:00:02][%cal Bg8g7,Bg7f7,Bf7e6,Be6f6][%mdl 32] [#]} 38. Rxf7+ $3 {[%emt 0:00:20][%mdl 512]} Kxf7 {[%emt 0:00:20]} 39. Qe8+ {[%emt 0:00:07]} Ke6 {[%emt 0:03:12]} 40. Bh3+ {[%emt 0:00:12] This pair of bishops is nice.} (40. d8=R $2 Qe1+ (40... Qxe3 41. Qg8+ Kf6 42. Rf8+ Kg5 43. Rf5+ Kh6 44. Rh5+ gxh5 45. Qe6+ Kg7 46. Qxe7+ Kg6 47. Qe6+ Kg7 48. Qd7+ Kf8 49. Qd8+ Kf7 50. Qd7+ Kf8 51. Qd8+ Kf7 52. Qd7+ Kf6 53. Qd6+ Kf7 54. Qd7+ $11) (40... Qxe3 41. Qg8+ Kf6 42. Rf8+ Kg5 43. Rf5+ Kh6 44. Rh5+ gxh5 45. Qe6+ Kg7 46. Qxe7+ Kg8 47. Qe8+ Kg7 48. Qe7+ Kg8 49. Qe8+ Kg7 50. Qe7+ $11)) 40... Kf6 {[%emt 0:00:06]} 41. Qh8+ {[%emt 0:00:23]} (41. d8=R {gets mated.} Qf3+ (41... Qxe3 {is a self mate.} 42. e5+ Nxe5 43. Qh8+ Kg5 44. Qxe5+ Qxe5 45. Rd1 Rc2 46. Bg2 Rxg2 47. Kxg2 Qe2+ 48. Kh3 Qxd1 49. Kg2 Qe2+ 50. Kg1 Bc5+ 51. Kh1 Qf3#) 42. Kg1 Rc1+ (42... Qxe3+ {leads to mate.} 43. Kh1 Qf3+ 44. Kg1 Bc5+ 45. Rd4 Bxd4#) 43. Bxc1 Bc5+) 41... Kf7 {[%emt 0:00:05]} 42. Qxh7+ {[%emt 0:00:07]} Kf6 {[%emt 0:00:16] [#]} 43. Bg5+ $1 {[%emt 0:00:05][%mdl 512]} Kxg5 {[%emt 0:00:31]} (43... Ke5 44. Qxe7+) 44. Qh4# {[%emt 0:00:03] Weighted Error Value: White=0.12 (very precise) /Black=0.29 (precise) .  Mistake:       	White=3     	Black=5      Inaccurate:     	---       	Black=3      OK:         	White=8     	Black=12     Best:        	White=5     	Black=1      Strong:       	---       	Black=1} 1-0

[Event "SixDays Budapest GM-C 10-2024"]
[Site "Budapest"]
[Date "2024.10.02"]
[Round "5.5"]
[White "Borgaonkar Akshay"]
[Black "Mohammad Fahad, Rahman"]
[Result "1/2-1/2"]
[ECO "B34"]
[WhiteElo "2415"]
[BlackElo "2419"]
[Annotator "TA"]
[PlyCount "56"]
[EventDate "2024.09.24"]
[EventType "tourn"]
[EventCountry "HUN"]
[SourceTitle "playchess.com"]
[Source "ChessBase"]
[SourceQuality "1"]
[TimeControl "5400+30"]

{[%evp 19,56,3,8,6,24,-11,8,13,20,9,27,11,28,-6,-3,-19,-17,-30,-16,-30,-27,-17,-16,-91,-92,-103,-73,-89,0,0,37,0,0,-24,0,0,0,-33,0]} 1. e4 {[%emt 0:01:20]} c5 {[%emt 0:02:15]} 2. Nf3 {[%emt 0:00:07]} Nc6 {[%emt 0:00:15]} 3. d4 {[%emt 0:00:05]} cxd4 {[%emt 0:00:12]} 4. Nxd4 {[%emt 0:00:05]} Nf6 {[%emt 0:00:30]} 5. Nc3 {[%emt 0:00:05]} e5 {[%emt 0:00:35]} 6. Ndb5 {[%emt 0:00:05]} d6 {[%emt 0:00:11]} 7. Nd5 {[%emt 0:00:10]} Nxd5 {[%emt 0:00:38]} 8. exd5 {[%emt 0:00:06]} Nb8 {[%emt 0:00:29]} 9. a4 {[%emt 0:01:17]} Be7 {[%emt 0:03:17]} 10. Be2 {[%emt 0:00:23]} O-O {[%emt 0:00:20]} 11. Bd2 {[%emt 0:00:16]} Nd7 {[%emt 0:00:59]} 12. a5 {[%emt 0:02:03]} f5 {[%emt 0:01:52]} 13. O-O {[%emt 0:00:59] The position is equal.} a6 {[%emt 0:12:18]} 14. Na3 {[%emt 0:00:43]} e4 {[%emt 0:00:17]} 15. Nc4 {[%emt 0:00:26]} f4 {[%emt 0:04:13]} 16. f3 {[%emt 0:59:04]} e3 {[%emt 0:06:15]} 17. Bb4 {[%emt 0:01:23]} Rf6 {[%emt 0:03:24]} 18. Qd4 {[%emt 0:01:06]} Qe8 {[%emt 0:03:25]} 19. Qe4 {[%emt 0:04:09][%cal Ob4d6] [#] aiming for Bxd6!} Qf7 {[%emt 0:00:48]} 20. Bd3 {[%emt 0:03:09]} Nf8 {[%emt 0:02:07]} 21. Rae1 {[%emt 0:04:55]} (21. g4 $1 $11) 21... Bf5 $17 {[%emt 0:12:09]} 22. Qd4 {[%emt 0:00:06]} Rd8 {[%emt 0:00:08]} 23. Re2 {[%emt 0:02:00]} Bd7 {[%emt 0:03:36]} (23... Bxd3 $17 24. Qxd3 Rh6) 24. Nb6 $36 {[%emt 0:01:10][%mdl 2048] White has good play.} Be8 {[%emt 0:02:49]} 25. Qe4 {[%emt 0:01:33]} Rh6 {[%emt 0:00:59]} 26. Qf5 {[%emt 0:01:41]} Rf6 {[%emt 0:00:23]} 27. Qe4 {[%emt 0:00:15]} Rh6 {[%emt 0:01:54]} 28. Qf5 {[%emt 0:00:29]} Rf6 {[%emt 0:00:41] Weighted Error Value: White=0.14 (very precise) /Black=0.17 (very precise) .  Mistake:       	White=1     	Black=1      Inaccurate:     	White=3     	Black=2      OK:         	White=8     	Black=7      Best:        	White=1     	Black=1} 1/2-1/2